bitfinex/quotes_BTCUSD_20250523
["timestamp","ask_amount","ask_price","bid_price","bid_amount"]
[1748031090273,0.34107062,108450.0,108440.0,0.99155125]
[1748031091086,0.34107062,108450.0,108440.0,0.35087125]
[1748031091291,0.34107062,108450.0,108440.0,0.99155125]
[1748031105552,0.31047062,108450.0,108440.0,0.99155125]
[1748031110023,0.34227062,108450.0,108440.0,0.99159125]
[1748031114463,0.31047062,108450.0,108440.0,0.99159125]
[1748031117157,0.31047062,108450.0,108440.0,0.71519125]
[1748031117363,0.31047062,108450.0,108440.0,0.99159125]
[1748031119751,0.34227062,108450.0,108440.0,0.99159125]
[1748031121516,0.72475471,108450.0,108440.0,0.01087125]
[1748031121738,1.19676031,108450.0,108440.0,0.01087125]
[1748031121953,1.21130116,108450.0,108440.0,0.01087125]
[1748031122384,0.82881707,108450.0,108440.0,0.00204]
[1748031122596,0.73629556,108450.0,108440.0,0.00104]
[1748031122815,1.11877965,108450.0,108440.0,0.00104]
[1748031123030,1.19242074,108450.0,108440.0,0.00104]
[1748031123455,1.12277965,108450.0,108440.0,0.00204]
[1748031123784,1.12077965,108450.0,108440.0,0.00104]
[1748031123989,0.73829556,108450.0,108440.0,0.00104]
[1748031124178,1.12077965,108450.0,108440.0,0.00104]
[1748031124435,1.94582634,108450.0,108440.0,0.00204]
[1748031124650,1.56334225,108450.0,108440.0,0.00204]
[1748031125272,1.56034225,108450.0,108440.0,0.00104]
[1748031125482,1.56534225,108450.0,108440.0,0.00104]
[1748031125689,1.56134225,108450.0,108440.0,4e-05]
[1748031126114,1.56634225,108450.0,108440.0,4e-05]
[1748031126547,1.49270116,108450.0,108440.0,4e-05]
[1748031130177,1.88518525,108450.0,108440.0,4e-05]
[1748031130824,1.50270116,108450.0,108440.0,4e-05]
[1748031136784,1.50270116,108450.0,108390.0,0.58783616]
[1748031136991,0.18448482,108410.0,108400.0,0.36396]
[1748031137317,0.27403038,108410.0,108400.0,0.36396]
[1748031137519,0.27403038,108410.0,108400.0,0.37255871]
[1748031138079,0.27403038,108410.0,108400.0,0.64899871]
[1748031138285,0.27453835,108410.0,108400.0,0.64899871]
[1748031138512,0.27553835,108410.0,108400.0,0.64899871]
[1748031138721,0.27653835,108410.0,108400.0,0.65099871]
[1748031142251,0.27653835,108410.0,108400.0,0.71369871]
[1748031142458,0.27653835,108410.0,108400.0,0.73369871]
[1748031144319,0.27653835,108410.0,108400.0,1.07369871]
[1748031145596,0.27653835,108410.0,108400.0,1.25820055]
[1748031145797,0.27653835,108410.0,108400.0,1.07369871]
[1748031145798,0.18699279,108410.0,108400.0,1.07369871]
[1748031146133,0.18699279,108410.0,108400.0,1.25820055]
[1748031146344,0.19621686,108410.0,108400.0,1.27665047]
[1748031146513,0.20544067,108410.0,108400.0,1.26742555]
[1748031147138,0.20544067,108410.0,108400.0,1.27624153]
[1748031147735,0.19621686,108410.0,108400.0,1.26701653]
[1748031147934,0.19621686,108410.0,108400.0,0.55683782]
[1748031148155,0.19621686,108410.0,108400.0,0.56606274]
[1748031148362,0.19621686,108410.0,108400.0,0.57528757]
[1748031148597,0.19621686,108410.0,108400.0,0.55683782]
[1748031148946,0.19621686,108410.0,108400.0,0.57528774]
[1748031149116,0.19621686,108410.0,108400.0,0.85176774]
[1748031149324,0.19621686,108410.0,108400.0,0.84254282]
[1748031149727,0.20544067,108410.0,108400.0,0.8609924]
[1748031150011,0.20544067,108410.0,108400.0,0.86099257]
[1748031151016,0.20544067,108410.0,108400.0,0.92239257]
[1748031153765,0.19621686,108410.0,108400.0,0.90394282]
[1748031154479,0.18699279,108410.0,108400.0,1.24394282]
[1748031155518,0.18699279,108410.0,108400.0,1.23471782]
[1748031156733,0.18699279,108410.0,108400.0,2.17931491]
[1748031156949,0.18699279,108410.0,108400.0,1.94980191]
[1748031157522,0.18699279,108410.0,108400.0,1.95902691]
[1748031157724,0.18699279,108410.0,108400.0,1.96825183]
[1748031157921,0.18699279,108410.0,108400.0,1.97747666]
[1748031158150,0.18699279,108410.0,108400.0,1.98851572]
[1748031158815,0.18699279,108410.0,108400.0,1.97929089]
[1748031160819,0.18699279,108410.0,108400.0,1.97006597]
[1748031163285,0.18699279,108410.0,108400.0,1.95902691]
[1748031163918,0.18699279,108410.0,108400.0,1.81090991]
[1748031165061,0.18699279,108410.0,108400.0,1.80168491]
[1748031165620,0.17965935,108410.0,108400.0,1.80168491]
[1748031169934,0.17965935,108410.0,108400.0,1.36739898]
[1748031170368,0.24165935,108410.0,108400.0,0.71233598]
[1748031170547,0.24165935,108410.0,108400.0,0.98877598]
[1748031171705,0.24165935,108410.0,108400.0,1.09061298]
[1748031171959,0.24165935,108410.0,108400.0,0.98877598]
[1748031172751,0.24165935,108410.0,108400.0,1.08926998]
[1748031173165,0.24165935,108410.0,108400.0,0.98877598]
[1748031173580,0.24165935,108410.0,108400.0,1.10109698]
[1748031173735,0.24165935,108410.0,108400.0,0.98877598]
[1748031173969,0.24165935,108410.0,108400.0,0.99981504]
[1748031175174,0.24165935,108410.0,108400.0,0.35985504]
[1748031175376,0.24165935,108410.0,108400.0,0.72337504]
[1748031175579,0.24165935,108410.0,108400.0,0.99981504]
[1748031177376,0.24165935,108410.0,108400.0,1.10344804]
[1748031177598,0.24165935,108410.0,108400.0,0.99981504]
[1748031182032,0.24165935,108410.0,108400.0,1.10646504]
[1748031182479,0.24165935,108410.0,108400.0,1.29036688]
[1748031182684,0.1981074,108410.0,108400.0,1.29959188]
[1748031183107,0.1981074,108410.0,108400.0,1.29036688]
[1748031183314,0.1888835,108410.0,108400.0,1.29036688]
[1748031183725,0.1888835,108410.0,108400.0,1.29959197]
[1748031183935,0.1888835,108410.0,108400.0,1.30881697]
[1748031185032,0.01173187,108410.0,108400.0,1.32726655]
[1748031185250,0.00250797,108410.0,108400.0,1.39939104]
[1748031185472,0.02095517,108410.0,108400.0,1.39939104]
[1748031185687,0.03017898,108410.0,108400.0,1.39939104]
[1748031185890,0.02095517,108410.0,108400.0,1.39939104]
[1748031186353,0.01173161,108410.0,108400.0,1.4889366]
[1748031186568,0.02095534,108410.0,108400.0,1.51294184]
[1748031187183,0.02095534,108410.0,108400.0,1.51662153]
[1748031187590,0.01173161,108410.0,108400.0,1.51662153]
[1748031187786,0.00250797,108410.0,108400.0,1.51662153]
[1748031188136,0.00250797,108410.0,108400.0,1.53116238]
[1748031188970,0.00250797,108410.0,108400.0,1.51644363]
[1748031189152,0.01173161,108410.0,108400.0,1.51644363]
[1748031189327,0.01173153,108410.0,108400.0,1.51644363]
[1748031189937,0.00250797,108410.0,108400.0,1.51644363]
[1748031190362,0.01173144,108410.0,108400.0,1.51644363]
[1748031191559,0.00250797,108410.0,108400.0,1.51644363]
[1748031191762,0.1936371,108450.0,108440.0,0.54287672]
[1748031192017,0.28565133,108450.0,108440.0,1.94860638]
[1748031192149,0.28565133,108450.0,108440.0,1.78750438]
[1748031192348,0.28565133,108450.0,108440.0,1.80735331]
[1748031192753,0.27643101,108450.0,108440.0,1.84393494]
[1748031192982,0.27643101,108450.0,108440.0,1.72853394]
[1748031193200,0.2672106,108450.0,108440.0,1.45400583]
[1748031193416,0.2672106,108450.0,108440.0,1.44659251]
[1748031194098,0.00015233,108450.0,108440.0,1.47425654]
[1748031194352,0.00015233,108450.0,108440.0,1.6254021]
[1748031194598,0.00215233,108450.0,108440.0,1.64094295]
[1748031194832,0.0133724,108450.0,108440.0,1.64194295]
[1748031195055,0.0113724,108450.0,108440.0,1.65565355]
[1748031195286,0.02059255,108450.0,108440.0,1.65565355]
[1748031195508,0.01959255,108450.0,108440.0,1.65565355]
[1748031196623,0.02881279,108450.0,108440.0,1.65565355]
[1748031196844,0.02981279,108450.0,108440.0,1.64094295]
[1748031197278,0.02059255,108450.0,108440.0,1.64094295]
[1748031197938,0.02981279,108450.0,108440.0,1.64094295]
[1748031198570,0.02981279,108450.0,108440.0,1.66858895]
[1748031199181,0.04825386,108450.0,108440.0,1.66858895]
[1748031199569,0.23267132,108450.0,108440.0,1.66858895]
[1748031199768,0.04825454,108450.0,108440.0,1.66858895]
[1748031199969,0.23267132,108450.0,108440.0,1.66858895]
[1748031200168,0.04825454,108450.0,108440.0,1.66858895]
[1748031201926,0.04825454,108450.0,108440.0,1.61054295]
[1748031202538,0.04825454,108450.0,108440.0,1.61046295]
[1748031203745,0.02981313,108450.0,108440.0,1.61046295]
[1748031203925,0.03903371,108450.0,108440.0,1.61046295]
[1748031204121,0.03903371,108450.0,108440.0,1.57926295]
[1748031204970,0.223451,108450.0,108440.0,1.55550101]
[1748031205178,0.22345159,108450.0,108440.0,0.90699967]
[1748031205383,0.2678106,108450.0,108440.0,0.38820905]
[1748031205600,0.2678106,108450.0,108440.0,1.02736905]
[1748031206016,0.2678106,108450.0,108440.0,1.0163361]
[1748031206204,0.2678106,108450.0,108440.0,0.0371761]
[1748031206404,0.25645529,108440.0,108430.0,0.42820978]
[1748031206615,0.25645529,108440.0,108430.0,2.74014457]
[1748031206814,0.25645529,108440.0,108430.0,2.40782125]
[1748031207016,0.25645529,108440.0,108430.0,2.01172225]
[1748031207220,0.25645529,108440.0,108430.0,1.6606893]
[1748031207433,0.25645529,108440.0,108430.0,2.18514009]
[1748031207640,0.25645529,108440.0,108430.0,2.46246009]
[1748031208039,0.25745529,108440.0,108430.0,2.46546009]
[1748031208426,0.25745529,108440.0,108430.0,2.49324336]
[1748031209536,0.26667672,108440.0,108430.0,2.50246581]
[1748031209851,0.25745529,108440.0,108430.0,2.50246581]
[1748031211683,0.25745529,108440.0,108430.0,1.86334581]
[1748031211936,0.25745529,108440.0,108430.0,2.50190581]
[1748031212110,0.25745529,108440.0,108430.0,2.49268336]
[1748031212680,0.25745529,108440.0,108430.0,2.50190589]
[1748031213962,0.25745529,108440.0,108430.0,2.15971952]
[1748031214098,0.25745529,108440.0,108430.0,3.18407159]
[1748031214294,0.25745529,108440.0,108430.0,2.81066159]
[1748031214499,0.24823378,108440.0,108430.0,2.54320906]
[1748031214708,0.24823378,108440.0,108430.0,2.55243159]
[1748031215537,0.24823378,108440.0,108430.0,2.56165404]
[1748031217796,0.24823378,108440.0,108430.0,1.91387159]
[1748031217999,0.24823378,108440.0,108430.0,2.56169395]
[1748031218659,0.24823378,108440.0,108430.0,2.5705081]
[1748031219722,0.25745529,108440.0,108430.0,2.57973038]
[1748031219937,0.25145529,108440.0,108430.0,2.59998552]
[1748031220573,0.25145529,108440.0,108430.0,2.60920763]
[1748031220752,0.25145529,108440.0,108430.0,2.26920763]
[1748031222573,0.26067655,108440.0,108430.0,2.26920763]
[1748031222787,0.08224277,108440.0,108430.0,2.60920763]
[1748031223005,0.26667655,108440.0,108430.0,2.5999851]
[1748031223258,0.27589815,108440.0,108430.0,2.5999851]
[1748031224297,0.28511983,108440.0,108430.0,2.5999851]
[1748031224529,0.28511983,108440.0,108430.0,2.60920712]
[1748031225180,0.08224277,108440.0,108430.0,2.6092067]
[1748031225395,0.001,108440.0,108430.0,2.67096899]
[1748031225613,0.01022109,108440.0,108430.0,2.67096899]
[1748031225812,0.01944235,108440.0,108430.0,2.67096899]
[1748031226020,0.01022109,108440.0,108430.0,2.67096899]
[1748031226448,0.01944226,108440.0,108430.0,2.67096899]
[1748031226652,0.0286636,108440.0,108430.0,2.67096899]
[1748031226859,0.02866352,108440.0,108430.0,2.67096899]
[1748031227365,0.06166352,108440.0,108430.0,2.67096899]
[1748031227592,0.09396352,108440.0,108430.0,2.67096899]
[1748031227772,0.08796352,108440.0,108430.0,2.67096899]
[1748031229333,0.10640646,108440.0,108430.0,2.67096899]
[1748031229531,0.09718495,108440.0,108430.0,2.67096899]
[1748031230144,0.28161873,108440.0,108430.0,2.03707189]
[1748031230361,0.26817672,108440.0,108430.0,1.4003671]
[1748031230562,0.26817672,108440.0,108430.0,1.2282801]
[1748031230776,0.26817672,108440.0,108430.0,1.5046401]
[1748031230981,0.26817672,108440.0,108430.0,1.2282801]
[1748031231191,0.26817672,108440.0,108430.0,0.8660401]
[1748031231402,0.26817672,108440.0,108430.0,1.4003671]
[1748031232596,0.26817672,108440.0,108430.0,0.7617671]
[1748031232812,0.26817672,108440.0,108430.0,1.4003671]
[1748031233051,0.26817672,108440.0,108430.0,1.5029161]
[1748031233254,0.26817672,108440.0,108430.0,1.4003671]
[1748031233628,0.26817672,108440.0,108430.0,1.5034521]
[1748031233859,0.26817672,108440.0,108430.0,1.4003671]
[1748031234174,0.26817672,108440.0,108430.0,1.5034521]
[1748031234372,0.26817672,108440.0,108430.0,0.8648521]
[1748031234624,0.26817672,108440.0,108430.0,1.5034521]
[1748031235031,0.26817672,108440.0,108430.0,1.4003671]
[1748031235682,0.26217672,108440.0,108430.0,1.4003671]
[1748031243187,0.25617672,108440.0,108430.0,1.4003671]
[1748031243685,0.25617672,108440.0,108430.0,1.5217651]
[1748031243893,0.25617672,108440.0,108430.0,1.4003671]
[1748031245822,0.25617672,108440.0,108430.0,1.3998071]
[1748031246237,0.25617672,108440.0,108430.0,0.7617671]
[1748031246439,0.25617672,108440.0,108430.0,1.3998071]
[1748031246649,0.25617672,108440.0,108430.0,1.3968071]
[1748031247239,0.25717672,108440.0,108430.0,1.3978071]
[1748031247669,0.25817672,108440.0,108430.0,1.3978071]
[1748031250972,0.25817672,108440.0,108430.0,0.7597671]
[1748031251178,0.25817672,108440.0,108430.0,1.3978071]
[1748031253125,0.25817672,108440.0,108430.0,0.79548576]
[1748031253335,0.25817672,108440.0,108430.0,0.64004]
[1748031255104,0.25817672,108440.0,108430.0,0.98004]
[1748031256731,0.25817672,108440.0,108430.0,0.70368]
[1748031256938,0.25817672,108440.0,108430.0,0.98004]
[1748031264222,0.25817672,108440.0,108430.0,0.64004]
[1748031268206,0.34772228,108440.0,108430.0,0.36368]
[1748031268413,0.34772228,108440.0,108430.0,0.64004]
[1748031270531,0.34772228,108440.0,108430.0,0.36368]
[1748031270712,0.34772228,108440.0,108430.0,0.64008]
[1748031271354,0.38465618,108440.0,108430.0,0.64008]
[1748031273420,0.38465618,108440.0,108430.0,0.63948]
[1748031273619,0.34772228,108440.0,108430.0,0.63948]
[1748031274913,0.38472449,108440.0,108430.0,0.63948]
[1748031275515,0.34772228,108440.0,108430.0,0.63948]
[1748031276385,0.34772228,108440.0,108430.0,0.36308]
[1748031276561,0.34772228,108440.0,108430.0,0.63948]
[1748031277624,0.38482552,108440.0,108430.0,0.002]
[1748031277800,0.38482552,108440.0,108430.0,0.63948]
[1748031278201,0.38482552,108440.0,108430.0,0.36308]
[1748031278414,0.38482552,108440.0,108430.0,0.63948]
[1748031285931,0.38482552,108440.0,108430.0,0.002]
[1748031286155,0.38482552,108440.0,108430.0,0.63948]
[1748031291558,0.38482552,108440.0,108430.0,0.002]
[1748031291778,0.34772228,108440.0,108430.0,0.63952]
[1748031293578,0.34772228,108440.0,108430.0,0.65482042]
[1748031299078,0.32927934,108440.0,108430.0,0.36108]
[1748031299235,0.32707934,108440.0,108430.0,0.36108]
[1748031300409,0.32707934,108440.0,108430.0,0.63748]
[1748031308264,0.23753378,108440.0,108430.0,0.63748]
[1748031312002,0.19367332,108430.0,108420.0,0.93169008]
[1748031312181,0.19367332,108430.0,108420.0,2.07622239]
[1748031312342,0.19367332,108430.0,108420.0,2.06240239]
[1748031313187,0.19367332,108430.0,108420.0,2.055179]
[1748031313388,0.19467332,108430.0,108420.0,2.055179]
[1748031313642,0.19467332,108430.0,108420.0,2.07506214]
[1748031314270,0.19467332,108430.0,108420.0,2.25952995]
[1748031314425,0.19467332,108430.0,108420.0,2.07506214]
[1748031316122,0.18545079,108430.0,108420.0,2.07506214]
[1748031316928,0.19467332,108430.0,108420.0,2.07506214]
[1748031318720,0.19467332,108430.0,108420.0,1.62264995]
[1748031318951,0.19467332,108430.0,108420.0,2.38844465]
[1748031318952,0.01944371,108430.0,108420.0,2.38844465]
[1748031319193,0.0286659,108430.0,108420.0,2.38844465]
[1748031319407,0.02866582,108430.0,108420.0,2.38844465]
[1748031319867,0.01944371,108430.0,108420.0,2.38844465]
[1748031320091,0.01944371,108430.0,108420.0,2.4029855]
[1748031320305,0.01944371,108430.0,108420.0,2.39193931]
[1748031320520,0.001,108430.0,108420.0,2.39193931]
[1748031320726,0.001,108430.0,108420.0,2.41591448]
[1748031321146,0.001,108430.0,108420.0,2.42591448]
[1748031322048,0.00015233,108450.0,108440.0,0.56379781]
[1748031322279,0.00015233,108450.0,108440.0,5.23863722]
[1748031322501,0.0093724,108450.0,108440.0,5.23863722]
[1748031322706,0.00015233,108450.0,108440.0,5.23863722]
[1748031323365,0.00015233,108450.0,108440.0,5.25747417]
[1748031324598,0.00115233,108450.0,108440.0,5.25847417]
[1748031324825,0.00415233,108450.0,108440.0,5.25847417]
[1748031324945,0.00415233,108450.0,108440.0,5.28439317]
[1748031325160,0.00215233,108450.0,108440.0,5.28339317]
[1748031325373,0.00215233,108450.0,108440.0,5.25947417]
[1748031325581,0.00215233,108450.0,108440.0,5.26047417]
[1748031325981,0.00215233,108450.0,108440.0,5.28438115]
[1748031326375,0.00921854,108470.0,108460.0,0.54283846]
[1748031326580,0.2727207,108480.0,108470.0,0.20282044]
[1748031326912,0.09207485,108490.0,108480.0,0.21201961]
[1748031327067,0.10144438,108490.0,108480.0,2.38777161]
[1748031327291,0.08301037,108490.0,108480.0,2.22945609]
[1748031327495,0.25136942,108490.0,108480.0,2.07604169]
[1748031327708,0.24215199,108490.0,108480.0,2.10331487]
[1748031327911,0.25136934,108490.0,108480.0,2.10331487]
[1748031328137,0.24215259,108490.0,108480.0,2.44331487]
[1748031328547,0.24615259,108490.0,108480.0,2.45353281]
[1748031328748,0.22537002,108490.0,108480.0,2.46275067]
[1748031329029,0.21615301,108490.0,108480.0,2.46375067]
[1748031329229,0.22115301,108490.0,108480.0,2.46375067]
[1748031329389,0.21193583,108490.0,108480.0,2.45453281]
[1748031329590,0.24193583,108490.0,108480.0,2.45453281]
[1748031330426,0.21193583,108490.0,108480.0,2.45453281]
[1748031331027,0.21193583,108490.0,108480.0,2.46375067]
[1748031331243,0.01836962,108490.0,108480.0,2.46375016]
[1748031331613,0.21193566,108490.0,108480.0,2.45453247]
[1748031331819,0.24343566,108490.0,108480.0,2.45453247]
[1748031332019,0.25265309,108490.0,108480.0,2.46375024]
[1748031333584,0.0460214,108490.0,108480.0,2.46374982]
[1748031333933,0.0460214,108490.0,108480.0,2.55329538]
[1748031333934,0.01836894,108490.0,108480.0,2.55329538]
[1748031334137,0.00915227,108490.0,108480.0,2.56783623]
[1748031334341,0.00915227,108490.0,108480.0,2.57653623]
[1748031334662,0.00915227,108490.0,108480.0,2.58553623]
[1748031334866,0.00015227,108490.0,108480.0,2.59552851]
[1748031335089,0.00415227,108490.0,108480.0,2.59652851]
[1748031335478,0.00615227,108490.0,108480.0,2.59652851]
[1748031335684,0.0307,108510.0,108500.0,0.55198053]
[1748031335864,0.09054356,108520.0,108510.0,0.55196099]
[1748031336039,0.09975836,108520.0,108510.0,3.36406422]
[1748031336251,0.28405618,108520.0,108510.0,3.15264885]
[1748031336459,0.28405618,108520.0,108510.0,3.10799416]
[1748031336614,0.28405618,108520.0,108510.0,3.08956345]
[1748031336824,0.27484189,108520.0,108510.0,2.90960102]
[1748031337022,0.27484189,108520.0,108510.0,2.9188165]
[1748031337245,0.27484189,108520.0,108510.0,2.8954395]
[1748031337443,0.07211429,108520.0,108510.0,2.91387004]
[1748031337646,0.05834338,108520.0,108510.0,2.92270699]
[1748031337887,0.08432875,108520.0,108510.0,2.92370699]
[1748031338110,0.08432875,108520.0,108510.0,3.26370699]
[1748031338658,0.08432875,108520.0,108510.0,3.26270699]
[1748031338659,0.03991429,108520.0,108510.0,3.26270699]
[1748031338852,0.0357,108520.0,108510.0,3.35325255]
[1748031339058,0.005,108520.0,108510.0,3.35325255]
[1748031339396,0.007,108520.0,108510.0,3.35325255]
[1748031339603,0.01621421,108520.0,108510.0,3.3677934]
[1748031340211,0.007,108520.0,108510.0,3.3677934]
[1748031340642,0.007,108520.0,108510.0,3.3764934]
[1748031341221,0.005,108520.0,108510.0,3.3764934]
[1748031341425,0.09975402,108530.0,108520.0,0.55194146]
[1748031341627,0.10026148,108530.0,108520.0,4.55144246]
[1748031341824,0.10026148,108530.0,108520.0,4.85983646]
[1748031342030,0.09104778,108530.0,108520.0,4.85983646]
[1748031342458,0.10026156,108530.0,108520.0,4.86867341]
[1748031342859,0.07462073,108530.0,108520.0,4.97275982]
[1748031343058,0.08383417,108530.0,108520.0,4.97275982]
[1748031343497,0.03320746,108530.0,108520.0,4.97275982]
[1748031343899,0.04242073,108530.0,108520.0,4.97275982]
[1748031344787,0.25475889,108550.0,108540.0,0.5519024]
[1748031344993,0.08908813,108550.0,108540.0,2.6166264]
[1748031345202,0.29175961,108550.0,108540.0,2.6166264]
[1748031345432,0.07066396,108550.0,108540.0,2.62583916]
[1748031345663,0.07987588,108550.0,108540.0,2.63467611]
[1748031345866,0.07066396,108550.0,108540.0,2.72422167]
[1748031346069,0.08908796,108550.0,108540.0,2.72422167]
[1748031346274,0.09830013,108550.0,108540.0,2.72422167]
[1748031346821,0.10751238,108550.0,108540.0,2.72422167]
[1748031347228,0.29775986,108550.0,108540.0,2.72522167]
[1748031347413,0.30175986,108550.0,108540.0,2.72522167]
[1748031347620,0.29775986,108550.0,108540.0,2.72522167]
[1748031347908,0.29175986,108550.0,108540.0,2.72422167]
[1748031348119,0.29475986,108550.0,108540.0,2.71500908]
[1748031348344,0.29475986,108550.0,108540.0,2.72422176]
[1748031348462,0.29975986,108550.0,108540.0,2.73621404]
[1748031348662,0.10630063,108550.0,108540.0,2.74542663]
[1748031349101,0.09708838,108550.0,108540.0,2.7819327]
[1748031349840,0.29054752,108550.0,108540.0,2.7819327]
[1748031350180,0.10630063,108550.0,108540.0,2.7819327]
[1748031350460,0.07866387,108550.0,108540.0,2.7819327]
[1748031350668,0.08787579,108550.0,108540.0,2.7819327]
[1748031351198,0.09708796,108550.0,108540.0,2.7819327]
[1748031351398,0.07866387,108550.0,108540.0,2.7819327]
[1748031351523,0.08787579,108550.0,108540.0,2.7819327]
[1748031352114,0.09708796,108550.0,108540.0,2.7819327]
[1748031352738,0.10630021,108550.0,108540.0,2.7819327]
[1748031353489,0.10630021,108550.0,108540.0,2.78557774]
[1748031353953,0.2905471,108550.0,108540.0,2.77636515]
[1748031354163,0.10630089,108550.0,108540.0,2.77636515]
[1748031354365,0.29054778,108550.0,108540.0,2.77636515]
[1748031354579,0.29054778,108550.0,108540.0,2.78557774]
[1748031357076,0.29054778,108550.0,108540.0,2.77094042]
[1748031358174,0.29054778,108550.0,108540.0,2.75289088]
[1748031358897,0.04936387,108550.0,108540.0,2.77087916]
[1748031359032,0.06778778,108550.0,108540.0,2.77087916]
[1748031359248,0.08977579,108550.0,108540.0,2.77087916]
[1748031359460,0.04936379,108550.0,108540.0,2.78542001]
[1748031359662,0.01736379,108550.0,108540.0,2.78542001]
[1748031359862,0.02657545,108550.0,108540.0,2.78542001]
[1748031360065,0.09898737,108550.0,108540.0,2.78542001]
[1748031360670,0.09898737,108550.0,108540.0,2.78546001]
[1748031361229,0.08977545,108550.0,108540.0,2.78546001]
[1748031361380,0.09898728,108550.0,108540.0,2.78546001]
[1748031362234,0.07690403,108550.0,108540.0,2.14978001]
[1748031362469,0.07690403,108550.0,108540.0,1.08528076]
[1748031362470,0.26587098,108550.0,108540.0,1.08528076]
[1748031362695,0.26587098,108550.0,108540.0,1.72076076]
[1748031362897,0.26587098,108550.0,108540.0,1.63324176]
[1748031363077,0.26587098,108550.0,108540.0,1.80044662]
[1748031363293,0.27508332,108550.0,108540.0,1.82808533]
[1748031363516,0.0632,108550.0,108540.0,1.92684348]
[1748031363729,0.0632,108550.0,108540.0,1.94138433]
[1748031363937,0.08162333,108550.0,108540.0,1.94138433]
[1748031365137,0.09083525,108550.0,108540.0,1.94138433]
[1748031365513,0.10004733,108550.0,108540.0,1.94138433]
[1748031365924,0.27508323,108550.0,108540.0,1.07991962]
[1748031366201,0.27508323,108550.0,108540.0,1.72397264]
[1748031367044,0.27508323,108550.0,108540.0,1.71475962]
[1748031367249,0.26587131,108550.0,108540.0,1.72397281]
[1748031367421,0.26587131,108550.0,108540.0,1.09834591]
[1748031367632,0.26587131,108550.0,108540.0,1.58400476]
[1748031367837,0.26587131,108550.0,108540.0,1.24400476]
[1748031368057,0.26587131,108550.0,108540.0,1.24396476]
[1748031368607,0.26587131,108550.0,108540.0,1.43744181]
[1748031369202,0.25665923,108550.0,108540.0,0.80272176]
[1748031369351,0.25665923,108550.0,108540.0,1.23255676]
[1748031369783,0.25665923,108550.0,108540.0,1.42603381]
[1748031369979,0.25665923,108550.0,108540.0,1.76603381]
[1748031371296,0.25665923,108550.0,108540.0,1.75682062]
[1748031371663,0.25665923,108550.0,108540.0,1.77151715]
[1748031371866,0.25665923,108550.0,108540.0,1.58725329]
[1748031372067,0.25665923,108550.0,108540.0,1.77151715]
[1748031372270,0.25665923,108550.0,108540.0,1.77155715]
[1748031372468,0.25665923,108550.0,108540.0,0.95245329]
[1748031372676,0.25665923,108550.0,108540.0,1.58729329]
[1748031373157,0.25665923,108550.0,108540.0,1.78077017]
[1748031373356,0.26587131,108550.0,108540.0,1.77528657]
[1748031373761,0.26587131,108550.0,108540.0,1.76607364]
[1748031373978,0.25665923,108550.0,108540.0,1.75686062]
[1748031374352,0.25665923,108550.0,108540.0,1.74808493]
[1748031374698,0.25665923,108550.0,108540.0,1.75691116]
[1748031375049,0.25665923,108550.0,108540.0,1.76612435]
[1748031375533,0.25665923,108550.0,108540.0,1.77533728]
[1748031376196,0.25665923,108550.0,108540.0,1.78083496]
[1748031376349,0.25665923,108550.0,108540.0,1.79004806]
[1748031376680,0.24744689,108550.0,108540.0,1.79004806]
[1748031377125,0.25665914,108550.0,108540.0,1.79926091]
[1748031377346,0.25665914,108550.0,108540.0,1.79926108]
[1748031377804,0.25665914,108550.0,108540.0,1.81768652]
[1748031377805,0.0632,108550.0,108540.0,1.81768652]
[1748031378393,0.07241158,108550.0,108540.0,1.81768652]
[1748031378905,0.0632,108550.0,108540.0,1.81768652]
[1748031379056,0.07241158,108550.0,108540.0,1.81768652]
[1748031379268,0.0632,108550.0,108540.0,1.90723208]
[1748031379502,0.0617,108560.0,108550.0,0.55188289]
[1748031379700,0.0617,108570.0,108560.0,0.54263654]
[1748031380045,0.0617,108570.0,108560.0,5.1284141]
[1748031380253,0.0617,108570.0,108560.0,3.9535411]
[1748031380784,0.07090988,108570.0,108560.0,3.9535411]
[1748031381022,0.08011984,108570.0,108560.0,3.96236733]
[1748031381264,0.07511984,108570.0,108560.0,3.96236733]
[1748031381494,0.06590988,108570.0,108560.0,3.96236733]
[1748031381713,0.0567,108570.0,108560.0,3.96436733]
[1748031382170,0.06590996,108570.0,108560.0,3.96436733]
[1748031383055,0.06690996,108570.0,108560.0,3.96436733]
[1748031383712,0.06090996,108570.0,108560.0,3.96436733]
[1748031384602,0.001,108570.0,108560.0,4.00160818]
[1748031384833,0.001,108570.0,108560.0,4.01160818]
[1748031385295,0.001,108570.0,108560.0,3.97890818]
[1748031385741,0.001,108570.0,108560.0,3.34410818]
[1748031385953,0.0315,108570.0,108560.0,3.31151418]
[1748031386376,0.001,108570.0,108560.0,3.31151418]
[1748031386589,0.001,108570.0,108560.0,3.31147418]
[1748031387243,0.001,108570.0,108560.0,3.33417418]
[1748031387489,0.001,108570.0,108560.0,3.34417418]
[1748031391420,0.08472523,108590.0,108580.0,0.55182434]
[1748031391634,0.08487735,108590.0,108580.0,5.1057389]
[1748031392424,0.07566883,108590.0,108580.0,5.1057389]
[1748031392915,0.07566883,108590.0,108580.0,5.12554444]
[1748031393337,0.07966883,108590.0,108580.0,5.12554444]
[1748031393547,0.08887735,108590.0,108580.0,5.12554444]
[1748031393688,0.08066883,108590.0,108580.0,5.12554444]
[1748031394030,0.09908613,108590.0,108580.0,4.49086444]
[1748031394245,0.08987735,108590.0,108580.0,5.12954444]
[1748031394457,0.09908604,108590.0,108580.0,5.12954444]
[1748031394878,0.10829482,108590.0,108580.0,5.12954444]
[1748031395305,0.09908613,108590.0,108580.0,5.12954444]
[1748031396379,0.08987735,108590.0,108580.0,5.12954444]
[1748031396586,0.06225212,108590.0,108580.0,5.14408529]
[1748031397419,0.06125212,108590.0,108580.0,5.14408529]
[1748031397760,0.07966891,108590.0,108580.0,5.14408529]
[1748031397966,0.06646039,108590.0,108580.0,3.69550844]
[1748031398192,0.07766874,108590.0,108580.0,3.69550844]
[1748031398739,0.08687718,108590.0,108580.0,3.69550844]
[1748031399139,0.07766874,108590.0,108580.0,3.69550844]
[1748031399336,0.08687726,108590.0,108580.0,3.69550844]
[1748031399556,0.09608595,108590.0,108580.0,3.69550844]
[1748031399758,0.09608587,108590.0,108580.0,3.69550844]
[1748031400213,0.08687726,108590.0,108580.0,3.69550844]
[1748031400415,0.10529473,108590.0,108580.0,3.54449853]
[1748031400618,0.10529473,108590.0,108580.0,3.39107973]
[1748031401256,0.09608587,108590.0,108580.0,3.39107973]
[1748031401457,0.10529465,108590.0,108580.0,3.39107973]
[1748031401589,0.27105705,108590.0,108580.0,3.38187078]
[1748031401803,0.27105705,108590.0,108580.0,3.40571916]
[1748031402018,0.26184853,108590.0,108580.0,3.2820655]
[1748031402226,0.24343114,108590.0,108580.0,1.78729263]
[1748031402443,0.24343114,108590.0,108580.0,0.03444463]
[1748031402652,0.3329767,108590.0,108580.0,0.31040463]
[1748031402852,0.3329767,108590.0,108580.0,0.28478623]
[1748031403093,0.3329767,108590.0,108580.0,0.62478623]